fUST/lending_fUST_20250627
["ID","MTS","AMOUNT","RATE_DAILY","PERIOD"]
[368123046,1751031048769,-329.96,0.00023561,2]
[368123047,1751031048779,-329.96,0.00023561,2]
[368123048,1751031048789,-329.96,0.00023561,2]
[368123049,1751031048801,-329.96,0.00023561,2]
[368123050,1751031048811,-329.96,0.00023561,2]
[368123051,1751031048821,-329.96,0.00023561,2]
[368123052,1751031048831,-329.96,0.00023561,2]
[368123053,1751031048840,-805.47,0.00023561,2]
[368123054,1751031048850,-1058.8,0.00023561,2]
[368123055,1751031048860,-702.87,0.00023561,2]
[368123056,1751031048870,-460.0,0.00023561,2]
[368123057,1751031048880,-2033.0,0.00023561,2]
[368123058,1751031048890,-460.0,0.00023561,2]
[368123059,1751031048900,-1504.5,0.00023561,2]
[368123060,1751031048910,-1131.52,0.00023561,2]
[368123061,1751031048920,-1784.64,0.00023561,2]
[368123062,1751031048930,-1564.81,0.00023561,2]
[368123063,1751031048940,-487.57,0.00023561,2]
[368123064,1751031048949,-301.37523875,0.00023561,2]
[368123065,1751031048959,-677.9,0.00023561,2]
[368123066,1751031048969,-460.0,0.00023561,2]
[368123067,1751031048979,-746.52,0.00023561,2]
[368123068,1751031048989,-151.0,0.000236,9]
[368123069,1751031048999,-2400.0,0.00023616,2]
[368123070,1751031049009,-2000.0,0.00023616,2]
[368123071,1751031049019,-2000.0,0.00023616,2]
[368123072,1751031049030,-250.0,0.00023621,2]
[368123073,1751031049040,-250.0,0.00023621,2]
[368123074,1751031049050,-5619.81153914,0.00023624,9]
[368123075,1751031049060,-900.0,0.00023647,2]
[368123076,1751031049070,-1600.0,0.00023654,2]
[368123077,1751031049080,-900.0,0.00023665,2]
[368123078,1751031049091,-600.0,0.00023671,2]
[368123079,1751031049101,-600.0,0.00023671,2]
[368123080,1751031049111,-600.0,0.00023671,2]
[368123081,1751031049121,-600.0,0.00023671,2]
[368123082,1751031049131,-600.0,0.00023671,2]
[368123083,1751031049141,-600.0,0.00023671,2]
[368123084,1751031049151,-600.0,0.00023671,2]
[368123085,1751031049161,-200.5,0.00023671,2]
[368123086,1751031049171,-460.0,0.00023671,2]
[368123087,1751031049180,-600.0,0.00023671,2]
[368123088,1751031049191,-460.0,0.00023671,2]
[368123089,1751031049201,-600.0,0.00023671,2]
[368123090,1751031049211,-460.0,0.00023671,2]
[368123091,1751031049221,-600.0,0.00023671,2]
[368123092,1751031049231,-460.0,0.00023671,2]
[368123093,1751031049242,-600.0,0.00023671,2]
[368123094,1751031049251,-334.12987993,0.00023671,2]
[368123095,1751031049261,-240.3,0.00023671,2]
[368123096,1751031049271,-600.0,0.00023671,2]
[368123097,1751031049281,-600.0,0.00023671,2]
[368123098,1751031049290,-560.2,0.00023671,2]
[368123099,1751031049300,-154.06460479,0.00023671,2]
[368123100,1751031049309,-202.5,0.00023671,2]
[368123101,1751031049319,-397.5,0.00023671,2]
[368123102,1751031049328,-900.0,0.00023673,2]
[368123103,1751031049339,-504.0,0.00023681,2]
[368123104,1751031049349,-900.0,0.00023705,2]
[368123105,1751031049358,-1400.0,0.00023742,2]
[368123106,1751031049368,-168.626327,0.00023765,7]
[368123107,1751031049377,-168.626336,0.00023765,7]
[368123108,1751031049387,-197.698769,0.00023765,7]
[368123109,1751031049397,-197.698762,0.00023765,7]
[368123110,1751031049406,-1600.0,0.00023779,2]
[368123111,1751031049415,-504.0,0.0002379,2]
[368123112,1751031049425,-9720.04302628,0.000238,2]
[368123113,1751031049435,-827.529621,0.00023802,4]
[368123114,1751031049445,-190.0,0.00023816,2]
[368123115,1751031049455,-1600.0,0.00023829,2]
[368123116,1751031049469,-190.14283766,0.0002383,2]
[368123117,1751031049479,-504.0,0.0002383,2]
[368123118,1751031049489,-5619.81153914,0.00023831,10]
[368123119,1751031049499,-663.57,0.00023835,2]
[368123120,1751031049510,-460.0,0.00023835,2]
[368123121,1751031049520,-2172.8,0.00023835,2]
[368123122,1751031049529,-476.68368863,0.00023835,2]
[368123123,1751031049539,-562.41,0.00023835,2]
[368123124,1751031049549,-1866.01,0.00023835,2]
[368123125,1751031049559,-799.59,0.00023835,2]
[368123126,1751031049569,-460.0,0.00023835,2]
[368123127,1751031049579,-460.0,0.00023835,2]
[368123128,1751031049589,-329.96,0.00023835,2]
[368123129,1751031049599,-805.47,0.00023835,2]
[368123130,1751031049609,-1058.8,0.00023835,2]
[368123131,1751031049619,-702.87,0.00023835,2]
[368123132,1751031049630,-460.0,0.00023835,2]
[368123133,1751031049640,-2033.0,0.00023835,2]
[368123134,1751031049650,-460.0,0.00023835,2]
[368123135,1751031049660,-1504.5,0.00023835,2]
[368123136,1751031049670,-1131.52,0.00023835,2]
[368123137,1751031049679,-1784.64,0.00023835,2]
[368123138,1751031049689,-1564.81,0.00023835,2]
[368123139,1751031049699,-487.57,0.00023835,2]
[368123140,1751031049709,-677.9,0.00023835,2]
[368123141,1751031049718,-460.0,0.00023835,2]
[368123142,1751031049729,-746.52,0.00023835,2]
[368123143,1751031049738,-900.0,0.00023839,2]
[368123144,1751031049748,-900.0,0.00023851,2]
[368123145,1751031049758,-2500.0,0.00023877,2]
[368123146,1751031049769,-2500.0,0.00023877,2]
[368123147,1751031049779,-2500.0,0.00023877,2]
[368123148,1751031049789,-2500.0,0.00023877,2]
[368123149,1751031049799,-2500.0,0.00023877,2]
[368123150,1751031049809,-151.0,0.000239,5]
[368123151,1751031049819,-7545.40488603,0.000239,7]
[368123152,1751031049931,-2759.96427186,0.000239,7]
[368123153,1751031049944,-4745.98099885,0.000239,7]
[368123154,1751031049956,-900.0,0.00023939,2]
[368123155,1751031049967,-312.7407708,0.00023948,4]
[368123156,1751031049979,-736.5352177,0.00023973,2]
[368123157,1751031049990,-150.0,0.00023973,2]
[368123158,1751031050003,-1400.0,0.00023992,2]
[368123159,1751031050013,-2000.0,0.00024,2]
[368123160,1751031050022,-2000.0,0.00024,2]
[368123161,1751031050033,-230.26210603,0.00024,7]
[368123162,1751031050043,-214.91804724,0.00024,7]
[368123163,1751031050053,-524.32400359,0.00024,3]
[368123164,1751031050064,-160.0,0.00024,7]
[368123165,1751031050074,-16627.22449579,0.00024,2]
[368123166,1751031050089,-1048.3,0.00024,2]
[368123167,1751031050354,-213.75309343,0.0002039,2]
[368123168,1751031050364,-605.68492964,0.00024,2]
[368123169,1751031050483,-460.0,0.00019178,2]
[368123170,1751031050492,-963.04041854,0.00024,2]
[368123171,1751031050503,-836.98798914,0.00024,7]
[368123172,1751031050513,-1558.06726413,0.00024,2]
[368123173,1751031050523,-5230.22152968,0.00024,2]
[368123174,1751031050535,-4124.53877619,0.00024,2]
[368123175,1751031050548,-13300.8162562,0.00024,2]
[368123176,1751031050567,-4683.97204548,0.00024,2]
[368123177,1751031050579,-304.45739246,0.00024,2]
[368123178,1751031050670,-643.71,0.00019178,2]
[368123179,1751031050679,-460.0,0.00019452,2]
[368123180,1751031050689,-643.71,0.00019452,2]
[368123181,1751031050699,-50.41653423,0.00019726,2]
[368123182,1751031050710,-282.88346577,0.00019726,2]
[368123183,1751031050719,-643.71,0.00019726,2]
[368123184,1751031050729,-643.71,0.0002,2]
[368123185,1751031050740,-1100.10969103,0.00024,2]
[368123186,1751031050754,-1054.77820846,0.00024,2]
[368123187,1751031050765,-353.12719254,0.00024,2]
[368123188,1751031050777,-8635.4343982,0.00024,2]
[368123229,1751032027196,-173.057886,0.00018801,2]
[368123230,1751032027219,-300.0,0.00018992,2]
[368123231,1751032027243,-554.25327715,0.00018992,2]
[368123232,1751032039096,-602.74672285,0.00018992,2]
[368123233,1751032039119,-300.0,0.00018992,2]
[368123234,1751032039143,-554.28194756,0.00018994,2]
[368123236,1751032052127,-521.35700407,0.00018994,2]
[368123240,1751032074688,157.976659,0.00013699,2]
[368123248,1751032151144,-9792.60824467,0.00018244,2]
[368123361,1751032238267,-7402.36431699,0.00018222,2]
[368123363,1751032238279,-321.85861082,0.00018222,2]
[368123365,1751032238291,-387.98977253,0.00018222,2]
[368123370,1751032238324,-16787.78729966,0.00018222,2]
[368123373,1751032238334,-207.39175533,0.00018244,2]
[368123376,1751032238343,-300.0,0.00018992,2]
[368123379,1751032238353,-182.83945465,0.00019078,2]
[368123381,1751032238362,-460.0,0.00019178,2]
[368123383,1751032238371,-460.0,0.00019178,2]
[368123385,1751032238382,-460.0,0.00019178,2]
[368123387,1751032238392,-460.0,0.00019178,2]
[368123389,1751032238401,-583.93090182,0.00019178,2]
[368123391,1751032238410,-423.0909058,0.00019178,2]
[368123393,1751032238420,-460.0,0.00019178,2]
[368123395,1751032238429,-460.0,0.00019178,2]
[368123397,1751032238442,-460.0,0.00019178,2]
[368123399,1751032238451,-460.0,0.00019178,2]
[368123402,1751032238460,-460.0,0.00019178,2]
[368123404,1751032238469,-460.0,0.00019178,2]
[368123406,1751032238479,-460.0,0.00019178,2]
[368123408,1751032238489,-460.0,0.00019178,2]
[368123410,1751032238499,-460.0,0.00019178,2]
[368123412,1751032238510,-460.0,0.00019178,2]
[368123414,1751032238520,-460.0,0.00019178,2]
[368123416,1751032238529,-460.0,0.00019178,2]
[368123418,1751032238542,-460.0,0.00019178,2]
[368123420,1751032238551,-460.0,0.00019178,2]
[368123422,1751032238561,-460.0,0.00019178,2]
[368123424,1751032238571,-460.0,0.00019178,2]
[368123426,1751032238580,-460.0,0.00019178,2]
[368123428,1751032238590,-652.89,0.00019178,2]
[368123430,1751032238599,-460.0,0.00019178,2]
[368123432,1751032238608,-460.0,0.00019178,2]
[368123434,1751032238617,-460.0,0.00019178,2]
[368123436,1751032238627,-2172.8,0.00019178,2]
[368123438,1751032238636,-460.0,0.00019178,2]
[368123440,1751032238646,-460.0,0.00019178,2]
[368123442,1751032238655,-1061.75,0.00019178,2]
[368123444,1751032238664,-460.0,0.00019178,2]
[368123446,1751032238673,-817.76,0.00019178,2]
[368123448,1751032238682,-460.0,0.00019178,2]
[368123450,1751032238691,-460.0,0.00019178,2]
[368123452,1751032238700,-460.0,0.00019178,2]
[368123454,1751032238710,-2093.98,0.00019178,2]
[368123456,1751032238719,-462.9,0.00019178,2]
[368123458,1751032238728,-392.28710508,0.00019178,2]
[368123460,1751032238737,-585.84,0.00019178,2]
[368123462,1751032238747,-460.0,0.00019178,2]
[368123464,1751032238756,-460.0,0.00019178,2]
[368123466,1751032238765,-460.0,0.00019178,2]
[368123468,1751032238775,-460.0,0.00019178,2]
[368123470,1751032238784,-460.0,0.00019178,2]
[368123472,1751032238794,-460.0,0.00019178,2]
[368123474,1751032238803,-460.0,0.00019178,2]
[368123476,1751032238812,-460.0,0.00019178,2]
[368123478,1751032238822,-460.0,0.00019178,2]
[368123480,1751032238831,-566.92,0.00019178,2]
[368123482,1751032238840,-760.73,0.00019178,2]
[368123484,1751032238849,-460.0,0.00019178,2]
[368123486,1751032238859,-460.0,0.00019178,2]
[368123488,1751032238869,-994.85,0.00019178,2]
[368123490,1751032238878,-707.37,0.00019178,2]
[368123492,1751032238887,-460.0,0.00019178,2]
[368123494,1751032238897,-460.0,0.00019178,2]
[368123496,1751032238907,-460.0,0.00019178,2]
[368123498,1751032238916,-213.5,0.00019178,2]
[368123500,1751032238925,-460.0,0.00019178,2]
[368123502,1751032238934,-460.0,0.00019178,2]
[368123504,1751032238944,-460.0,0.00019178,2]
[368123506,1751032238953,-460.0,0.00019178,2]
[368123508,1751032238962,-460.0,0.00019178,2]
[368123510,1751032238972,-530.15,0.00019178,2]
[368123512,1751032238981,-1474.22,0.00019178,2]
[368123514,1751032238990,-460.0,0.00019178,2]
[368123516,1751032239000,-460.0,0.00019178,2]
[368123518,1751032239009,-460.0,0.00019178,2]
[368123520,1751032239018,-460.0,0.00019178,2]
[368123522,1751032239027,-1115.8,0.00019178,2]
[368123524,1751032239037,-2078.45,0.00019178,2]
[368123526,1751032239047,-1750.13,0.00019178,2]
[368123528,1751032239056,-460.0,0.00019178,2]
[368123530,1751032239066,-460.0,0.00019178,2]
[368123532,1751032239075,-460.0,0.00019178,2]
[368123534,1751032239084,-460.0,0.00019178,2]
[368123536,1751032239094,-460.0,0.00019178,2]
[368123538,1751032239103,-460.0,0.00019178,2]
[368123540,1751032239114,-1434.41,0.00019178,2]
[368123542,1751032239123,-460.0,0.00019178,2]
[368123544,1751032239133,-460.0,0.00019178,2]
[368123546,1751032239142,-460.0,0.00019178,2]
[368123548,1751032239151,-605.01,0.00019178,2]
[368123550,1751032239160,-460.0,0.00019178,2]
[368123552,1751032239169,-761.86,0.00019178,2]
[368123554,1751032239179,-243.756944,0.00019178,2]
[368123556,1751032239189,-437.94983703,0.00019452,2]
[368123558,1751032239198,-460.0,0.00019452,2]
[368123560,1751032239208,-460.0,0.00019452,2]
[368123562,1751032239217,-460.0,0.00019452,2]
[368123564,1751032239227,-460.0,0.00019452,2]
[368123566,1751032239236,-326.64766857,0.00019452,2]
[368123568,1751032239245,-460.0,0.00019452,2]
[368123570,1751032239256,-460.0,0.00019452,2]
[368123572,1751032239265,-460.0,0.00019452,2]
[368123574,1751032239276,-460.0,0.00019452,2]
[368123576,1751032239285,-460.0,0.00019452,2]
[368123578,1751032239295,-652.89,0.00019452,2]
[368123580,1751032239305,-460.0,0.00019452,2]
[368123582,1751032239315,-460.0,0.00019452,2]
[368123584,1751032239324,-460.0,0.00019452,2]
[368123586,1751032239333,-2172.8,0.00019452,2]
[368123588,1751032239342,-460.0,0.00019452,2]
[368123590,1751032239352,-460.0,0.00019452,2]
[368123592,1751032239361,-1061.75,0.00019452,2]
[368123594,1751032239371,-817.76,0.00019452,2]
[368123596,1751032239381,-460.0,0.00019452,2]
[368123598,1751032239390,-460.0,0.00019452,2]
[368123600,1751032239399,-2093.98,0.00019452,2]
[368123602,1751032239408,-462.9,0.00019452,2]
[368123604,1751032239418,-585.84,0.00019452,2]
[368123606,1751032239428,-460.0,0.00019452,2]
[368123608,1751032239441,-460.0,0.00019452,2]
[368123610,1751032239450,-460.0,0.00019452,2]
[368123612,1751032239460,-460.0,0.00019452,2]
[368123614,1751032239469,-460.0,0.00019452,2]
[368123616,1751032239480,-460.0,0.00019452,2]
[368123618,1751032239490,-460.0,0.00019452,2]
[368123620,1751032239499,-460.0,0.00019452,2]
[368123622,1751032239510,-760.73,0.00019452,2]
[368123624,1751032239520,-460.0,0.00019452,2]
[368123626,1751032239530,-195.8,0.00019452,2]
[368123628,1751032239540,-994.85,0.00019452,2]
[368123630,1751032239550,-707.37,0.00019452,2]
[368123631,1751032239559,-460.0,0.00019452,2]
[368123632,1751032239568,-460.0,0.00019452,2]
[368123633,1751032239577,-460.0,0.00019452,2]
[368123634,1751032239586,-460.0,0.00019452,2]
[368123635,1751032239596,-460.0,0.00019452,2]
[368123636,1751032239606,-460.0,0.00019452,2]
[368123637,1751032239615,-1474.22,0.00019452,2]
[368123638,1751032239624,-460.0,0.00019452,2]
[368123639,1751032239634,-460.0,0.00019452,2]
[368123640,1751032239643,-460.0,0.00019452,2]
[368123641,1751032239652,-259.33,0.00019452,2]
[368123642,1751032239661,-1115.8,0.00019452,2]
[368123643,1751032239670,-2078.45,0.00019452,2]
[368123644,1751032239680,-1750.13,0.00019452,2]
[368123645,1751032239688,-460.0,0.00019452,2]
[368123646,1751032239698,-460.0,0.00019452,2]
[368123647,1751032239707,-460.0,0.00019452,2]
[368123648,1751032239716,-460.0,0.00019452,2]
[368123649,1751032239725,-460.0,0.00019452,2]
[368123650,1751032239735,-1434.41,0.00019452,2]
[368123651,1751032239745,-460.0,0.00019452,2]
[368123653,1751032239754,-460.0,0.00019452,2]
[368123655,1751032239764,-605.01,0.00019452,2]
[368123657,1751032239773,-761.86,0.00019452,2]
[368123659,1751032239782,-460.0,0.00019726,2]
[368123661,1751032239792,-460.0,0.00019726,2]
[368123663,1751032239802,-460.0,0.00019726,2]
[368123665,1751032239811,-460.0,0.00019726,2]
[368123667,1751032239820,-460.0,0.00019726,2]
[368123669,1751032239829,-460.0,0.00019726,2]
[368123671,1751032239838,-460.0,0.00019726,2]
[368123673,1751032239847,-652.89,0.00019726,2]
[368123675,1751032239857,-2172.8,0.00019726,2]
[368123677,1751032239866,-460.0,0.00019726,2]
[368123679,1751032239875,-460.0,0.00019726,2]
[368123681,1751032239884,-1061.75,0.00019726,2]
[368123683,1751032239893,-817.76,0.00019726,2]
[368123686,1751032239904,-460.0,0.00019726,2]
[368123701,1751032240045,-460.0,0.00019726,2]
[368123703,1751032240055,-2093.98,0.00019726,2]
[368123705,1751032240065,-462.9,0.00019726,2]
[368123707,1751032240074,-585.84,0.00019726,2]
[368123709,1751032240084,-460.0,0.00019726,2]
[368123711,1751032240094,-460.0,0.00019726,2]
[368123713,1751032240103,-460.0,0.00019726,2]
[368123715,1751032240112,-460.0,0.00019726,2]
[368123717,1751032240121,-460.0,0.00019726,2]
[368123719,1751032240130,-460.0,0.00019726,2]
[368123721,1751032240139,-460.0,0.00019726,2]
[368123723,1751032240148,-460.0,0.00019726,2]
[368123725,1751032240158,-760.73,0.00019726,2]
[368123727,1751032240168,-460.0,0.00019726,2]
[368123729,1751032240178,-994.85,0.00019726,2]
[368123731,1751032240188,-707.37,0.00019726,2]
[368123733,1751032240198,-460.0,0.00019726,2]
[368123735,1751032240208,-460.0,0.00019726,2]
[368123737,1751032240217,-460.0,0.00019726,2]
[368123739,1751032240226,-460.0,0.00019726,2]
[368123741,1751032240235,-335.97207344,0.00019726,2]
[368123743,1751032240245,-1474.22,0.00019726,2]
[368123745,1751032240254,-460.0,0.00019726,2]
[368123747,1751032240264,-460.0,0.00019726,2]
[368123749,1751032240273,-460.0,0.00019726,2]
[368123751,1751032240283,-1115.8,0.00019726,2]
[368123753,1751032240295,-2078.45,0.00019726,2]
[368123755,1751032240305,-1750.13,0.00019726,2]
[368123757,1751032240315,-460.0,0.00019726,2]
[368123759,1751032240325,-460.0,0.00019726,2]
[368123761,1751032240335,-460.0,0.00019726,2]
[368123763,1751032240345,-460.0,0.00019726,2]
[368123765,1751032240355,-462.2,0.00019726,2]
[368123767,1751032240365,-1434.41,0.00019726,2]
[368123769,1751032240375,-460.0,0.00019726,2]
[368123771,1751032240386,-460.0,0.00019726,2]
[368123773,1751032240396,-605.01,0.00019726,2]
[368123775,1751032240405,-761.86,0.00019726,2]
[368123777,1751032240415,-500.0,0.00019743,2]
[368123779,1751032240424,-6204.46356062,0.000199,2]
[368123781,1751032240437,-500.0,0.0001995,2]
[368123783,1751032240447,-500.0,0.0001995,2]
[368123785,1751032240458,-500.0,0.00019973,2]
[368123787,1751032240468,-151.0,0.00019978,2]
[368123789,1751032240479,-727.17,0.0001999,3]
[368123791,1751032240488,-100000.0,0.0001999,2]
[368123793,1751032240498,-460.0,0.0002,2]
[368123795,1751032240510,-460.0,0.0002,2]
[368123797,1751032240520,-460.0,0.0002,2]
[368123799,1751032240530,-202.88,0.0002,2]
[368123801,1751032240541,-460.0,0.0002,2]
[368123803,1751032240551,-652.89,0.0002,2]
[368123805,1751032240560,-2172.8,0.0002,2]
[368123807,1751032240570,-460.0,0.0002,2]
[368123809,1751032240580,-460.0,0.0002,2]
[368123811,1751032240589,-1061.75,0.0002,2]
[368123813,1751032240599,-817.76,0.0002,2]
[368123815,1751032240608,-460.0,0.0002,2]
[368123817,1751032240617,-460.0,0.0002,2]
[368123819,1751032240627,-2093.98,0.0002,2]
[368123821,1751032240636,-462.9,0.0002,2]
[368123823,1751032240646,-585.84,0.0002,2]
[368123825,1751032240656,-460.0,0.0002,2]
[368123827,1751032240666,-460.0,0.0002,2]
[368123829,1751032240676,-460.0,0.0002,2]
[368123831,1751032240685,-460.0,0.0002,2]
[368123833,1751032240695,-460.0,0.0002,2]
[368123835,1751032240705,-460.0,0.0002,2]
[368123837,1751032240715,-460.0,0.0002,2]
[368123839,1751032240724,-760.73,0.0002,2]
[368123841,1751032240733,-460.0,0.0002,2]
[368123843,1751032240742,-994.85,0.0002,2]
[368123845,1751032240751,-707.37,0.0002,2]
[368123847,1751032240761,-460.0,0.0002,2]
[368123849,1751032240770,-460.0,0.0002,2]
[368123851,1751032240779,-460.0,0.0002,2]
[368123853,1751032240788,-460.0,0.0002,2]
[368123855,1751032240798,-800.0,0.0002,2]
[368123857,1751032240808,-1474.22,0.0002,2]
[368123859,1751032240818,-460.0,0.0002,2]
[368123861,1751032240828,-460.0,0.0002,2]
[368123863,1751032240838,-460.0,0.0002,2]
[368123865,1751032240847,-1115.8,0.0002,2]
[368123867,1751032240857,-2078.45,0.0002,2]
[368123869,1751032240866,-1750.13,0.0002,2]
[368123871,1751032240875,-460.0,0.0002,2]
[368123873,1751032240885,-460.0,0.0002,2]
[368123875,1751032240894,-460.0,0.0002,2]
[368123877,1751032240903,-460.0,0.0002,2]
[368123879,1751032240913,-1434.41,0.0002,2]
[368123881,1751032240922,-460.0,0.0002,2]
[368123883,1751032240931,-460.0,0.0002,2]
[368123885,1751032240941,-605.01,0.0002,2]
[368123887,1751032240950,-761.86,0.0002,2]
[368123889,1751032240960,-179.57827425,0.00020025,2]
[368123891,1751032240969,-182.83945459,0.00020027,2]
[368123893,1751032240979,-6204.46356053,0.00020107,2]
[368123895,1751032240988,-818.85055983,0.00020173,2]
[368123897,1751032240997,-207.4,0.0002027,2]
[368123899,1751032241006,-500.0,0.0002027,2]
[368123901,1751032241016,-5000.0,0.0002027,2]
[368123904,1751032241038,-500.0,0.0002027,2]
[368123906,1751032241047,-359.07977781,0.0002027,2]
[368123908,1751032241057,-18774.53448023,0.0002027,2]
[368123910,1751032241067,-460.0,0.00020273,2]
[368123912,1751032241076,-460.0,0.00020273,2]
[368123914,1751032241085,-323.52142907,0.00020273,2]
[368123915,1751032241095,-460.0,0.00020273,2]
[368123917,1751032241104,-652.89,0.00020273,2]
[368123920,1751032241114,-2172.8,0.00020273,2]
[368123921,1751032241123,-460.0,0.00020273,2]
[368123923,1751032241132,-455.97514626,0.00020273,2]
[368123926,1751032241142,-1061.75,0.00020273,2]
[368123927,1751032241151,-817.76,0.00020273,2]
[368123929,1751032241161,-460.0,0.00020273,2]
[368123932,1751032241171,-460.0,0.00020273,2]
[368123933,1751032241180,-2093.98,0.00020273,2]
[368123935,1751032241189,-462.9,0.00020273,2]
[368123937,1751032241199,-585.84,0.00020273,2]
[368123939,1751032241209,-460.0,0.00020273,2]
[368123942,1751032241218,-460.0,0.00020273,2]
[368123944,1751032241228,-460.0,0.00020273,2]
[368123946,1751032241238,-460.0,0.00020273,2]
[368123948,1751032241247,-460.0,0.00020273,2]
[368123950,1751032241256,-460.0,0.00020273,2]
[368123951,1751032241266,-460.0,0.00020273,2]
[368123953,1751032241275,-760.73,0.00020273,2]
[368123955,1751032241285,-460.0,0.00020273,2]
[368123957,1751032241295,-994.85,0.00020273,2]
[368123959,1751032241304,-707.37,0.00020273,2]
[368123961,1751032241313,-460.0,0.00020273,2]
[368123963,1751032241322,-460.0,0.00020273,2]
[368123965,1751032241332,-460.0,0.00020273,2]
[368123967,1751032241342,-460.0,0.00020273,2]
[368123969,1751032241352,-1474.22,0.00020273,2]
[368123971,1751032241361,-460.0,0.00020273,2]
[368123973,1751032241371,-460.0,0.00020273,2]
[368123975,1751032241380,-460.0,0.00020273,2]
[368123977,1751032241390,-1115.8,0.00020273,2]
[368123979,1751032241400,-2078.45,0.00020273,2]
[368123981,1751032241409,-1750.13,0.00020273,2]
[368123983,1751032241419,-460.0,0.00020273,2]
[368123985,1751032241429,-460.0,0.00020273,2]
[368123987,1751032241442,-460.0,0.00020273,2]
[368123989,1751032241451,-460.0,0.00020273,2]
[368123991,1751032241461,-1434.41,0.00020273,2]
[368123993,1751032241471,-460.0,0.00020273,2]
[368123995,1751032241481,-460.0,0.00020273,2]
[368123997,1751032241491,-605.01,0.00020273,2]
[368123999,1751032241501,-761.86,0.00020273,2]
[368124001,1751032241510,-235.69525341,0.00020291,2]
[368124003,1751032241523,-151.0,0.00020301,2]
[368124005,1751032241532,-151.0,0.00020301,2]
[368124007,1751032241542,-6204.46356053,0.00020314,3]
[368124010,1751032241551,-151.0,0.00020328,2]
[368124011,1751032241560,-198.0,0.00020356,2]
[368124013,1751032241570,-1000.0,0.00020521,2]
[368124016,1751032241579,-213.75309343,0.00020521,3]
[368124017,1751032241588,-6204.46356053,0.00020521,3]
[368124019,1751032241598,-460.0,0.00020547,2]
[368124021,1751032241606,-460.0,0.00020547,2]
[368124023,1751032241616,-460.0,0.00020547,2]
[368124025,1751032241625,-652.89,0.00020547,2]
[368124027,1751032241634,-2172.8,0.00020547,2]
[368124029,1751032241644,-460.0,0.00020547,2]
[368124031,1751032241654,-1061.75,0.00020547,2]
[368124033,1751032241664,-817.76,0.00020547,2]
[368124035,1751032241673,-460.0,0.00020547,2]
[368124037,1751032241683,-460.0,0.00020547,2]
[368124039,1751032241692,-2093.98,0.00020547,2]
[368124041,1751032241701,-462.9,0.00020547,2]
[368124043,1751032241711,-585.84,0.00020547,2]
[368124045,1751032241721,-460.0,0.00020547,2]
[368124047,1751032241731,-460.0,0.00020547,2]
[368124049,1751032241740,-460.0,0.00020547,2]
[368124051,1751032241750,-460.0,0.00020547,2]
[368124053,1751032241759,-460.0,0.00020547,2]
[368124055,1751032241770,-460.0,0.00020547,2]